[Event "*** Titled Tuesday Blitz"]
[Site "Chess.com"]
[Date "2021.03.02"]
[Round "8"]
[White "StockholmMissile"]
[Black "MirMan90"]
[Result "0-1"]
[WhiteElo "2588"]
[BlackElo "2746"]
[TimeControl "180+1"]
[EndTime "11:31:41 PST"]
[Termination "MirMan90 won on time"]

1. d4 {[%clk 0:03:00.9]} 1... g6 {[%clk 0:02:58.8]} 2. e4 {[%clk 0:03:00.7]}
2... Nh6 {[%clk 0:02:56.7]} 3. h4 {[%clk 0:02:53.7]} 3... Bg7 {[%clk 0:02:50.6]}
4. h5 {[%clk 0:02:52.8]} 4... d5 {[%clk 0:02:50.6]} 5. e5 {[%clk 0:02:52.3]}
5... c5 {[%clk 0:02:50.2]} 6. c3 {[%clk 0:02:51.8]} 6... Nc6 {[%clk 0:02:49.7]}
7. Be2 {[%clk 0:02:37.3]} 7... cxd4 {[%clk 0:02:47.9]} 8. cxd4 {[%clk
0:02:36.5]} 8... Qb6 {[%clk 0:02:45.2]} 9. Be3 {[%clk 0:02:26.1]} 9... Qxb2
{[%clk 0:02:41]} 10. Nd2 {[%clk 0:02:23.3]} 10... Nf5 {[%clk 0:02:40.1]} 11. Rb1
{[%clk 0:02:14.3]} 11... Qa3 {[%clk 0:02:39.5]} 12. h6 {[%clk 0:01:59]} 12...
Bf8 {[%clk 0:02:39.1]} 13. Rb3 {[%clk 0:01:58.6]} 13... Nxe3 {[%clk 0:02:29.9]}
14. fxe3 {[%clk 0:01:53.4]} 14... Qxa2 {[%clk 0:02:20.4]} 15. Ngf3 {[%clk
0:01:50.4]} 15... Qa5 {[%clk 0:02:10.6]} 16. Ng5 {[%clk 0:01:38.8]} 16... f6
{[%clk 0:02:06]} 17. exf6 {[%clk 0:01:24.8]} 17... exf6 {[%clk 0:02:05.7]} 18.
Nf3 {[%clk 0:01:22.3]} 18... Bd6 {[%clk 0:01:57.9]} 19. O-O {[%clk 0:01:18.9]}
19... O-O {[%clk 0:01:57.3]} 20. Rb5 {[%clk 0:01:16.8]} 20... Qd8 {[%clk
0:01:56.9]} 21. Rxd5 {[%clk 0:01:16.8]} 21... Kh8 {[%clk 0:01:49.1]} 22. Rb5
{[%clk 0:01:07.2]} 22... a6 {[%clk 0:01:45.7]} 23. Rb1 {[%clk 0:01:00.4]} 23...
Re8 {[%clk 0:01:44.7]} 24. Nc4 {[%clk 0:01:00.2]} 24... Bf8 {[%clk 0:01:41.9]}
25. d5 {[%clk 0:00:51]} 25... Na7 {[%clk 0:01:34.6]} 26. d6 {[%clk 0:00:42]}
26... Nb5 {[%clk 0:01:26]} 27. Qd2 {[%clk 0:00:22.6]} 27... Bxh6 {[%clk
0:01:24.7]} 28. Rfd1 {[%clk 0:00:20]} 28... Bd7 {[%clk 0:01:23.2]} 29. Qb2
{[%clk 0:00:17.5]} 29... Rc8 {[%clk 0:01:18.8]} 30. Nd4 {[%clk 0:00:16.2]} 30...
Rxc4 {[%clk 0:01:14.4]} 31. Bxc4 {[%clk 0:00:15.9]} 31... Bxe3+ {[%clk 0:01:14]}
32. Kf1 {[%clk 0:00:12.7]} 32... Nxd6 {[%clk 0:01:03.2]} 33. Bd5 {[%clk
0:00:10.1]} 33... b5 {[%clk 0:00:56.2]} 34. Re1 {[%clk 0:00:08]} 34... Kg7
{[%clk 0:00:37.6]} 35. Rbd1 {[%clk 0:00:08.1]} 35... Bg4 {[%clk 0:00:31]} 36.
Rd3 {[%clk 0:00:07.4]} 36... Bxd4 {[%clk 0:00:28.8]} 37. Qxd4 {[%clk 0:00:06.4]}
37... Rxe1+ {[%clk 0:00:28.2]} 38. Kxe1 {[%clk 0:00:07.3]} 38... Qc8 {[%clk
0:00:25]} 39. Kf2 {[%clk 0:00:04.8]} 39... Qf5+ {[%clk 0:00:24.3]} 40. Kg1
{[%clk 0:00:04.2]} 40... Qe5 {[%clk 0:00:22.3]} 41. Qxe5 {[%clk 0:00:03]} 41...
fxe5 {[%clk 0:00:22.3]} 42. Bc6 {[%clk 0:00:03.4]} 42... Nc4 {[%clk 0:00:21.9]}
43. Rb3 {[%clk 0:00:02.3]} 43... Kf6 {[%clk 0:00:21.4]} 44. Bb7 {[%clk
0:00:02.6]} 44... Bd1 {[%clk 0:00:19.9]} 45. Rb4 {[%clk 0:00:02.4]} 45... Nd6
{[%clk 0:00:18.2]} 46. Bxa6 {[%clk 0:00:02.3]} 46... Be2 {[%clk 0:00:18.4]} 47.
Rb2 {[%clk 0:00:02.2]} 47... Bc4 {[%clk 0:00:18.2]} 48. Rd2 {[%clk 0:00:02.8]}
48... Ke6 {[%clk 0:00:18.3]} 49. Rd1 {[%clk 0:00:02.6]} 49... e4 {[%clk
0:00:16.8]} 50. Kf2 {[%clk 0:00:03.1]} 50... Ke5 {[%clk 0:00:17]} 51. Rh1 {[%clk
0:00:03.3]} 51... h5 {[%clk 0:00:17]} 52. Rc1 {[%clk 0:00:03.9]} 52... Nf5
{[%clk 0:00:16.5]} 53. Rd1 {[%clk 0:00:03.8]} 53... e3+ {[%clk 0:00:16.3]} 54.
Kf3 {[%clk 0:00:04.2]} 54... Bd5+ {[%clk 0:00:16.6]} 55. Ke2 {[%clk 0:00:03.4]}
55... Bxg2 {[%clk 0:00:15.5]} 56. Bxb5 {[%clk 0:00:03.3]} 56... Bh3 {[%clk
0:00:15.8]} 57. Rg1 {[%clk 0:00:03.2]} 57... Bg4+ {[%clk 0:00:15.6]} 58. Ke1
{[%clk 0:00:03.4]} 58... Kf4 {[%clk 0:00:16]} 59. Bd3 {[%clk 0:00:03.4]} 59...
Nd4 {[%clk 0:00:16]} 60. Rf1+ {[%clk 0:00:03.5]} 60... Nf3+ {[%clk 0:00:16.1]}
61. Kd1 {[%clk 0:00:03.6]} 61... g5 {[%clk 0:00:16.4]} 62. Be2 {[%clk
0:00:03.9]} 62... h4 {[%clk 0:00:16.3]} 63. Kc2 {[%clk 0:00:03.9]} 63... Kg3
{[%clk 0:00:16.3]} 64. Kd3 {[%clk 0:00:03.4]} 64... Ne5+ {[%clk 0:00:15.9]} 65.
Ke4 {[%clk 0:00:03.6]} 65... Bxe2 {[%clk 0:00:15.9]} 66. Rg1+ {[%clk 0:00:03.6]}
66... Kf2 {[%clk 0:00:16.1]} 67. Rxg5 {[%clk 0:00:03.9]} 67... Nf3 {[%clk
0:00:16.1]} 68. Rf5 {[%clk 0:00:04.1]} 68... Bd1 {[%clk 0:00:16.2]} 69. Rf7
{[%clk 0:00:03.7]} 69... h3 {[%clk 0:00:16.5]} 70. Rh7 {[%clk 0:00:03.7]} 70...
h2 {[%clk 0:00:16.9]} 71. Kd3 {[%clk 0:00:02.7]} 71... e2 {[%clk 0:00:16.9]} 72.
Rxh2+ {[%clk 0:00:02.8]} 72... Nxh2 {[%clk 0:00:17.1]} 73. Kd2 {[%clk
0:00:03.4]} 73... e1=Q+ {[%clk 0:00:17]} 0-1

[Event "*** Titled Tuesday Blitz"]
[Site "Chess.com"]
[Date "2021.03.02"]
[Round "8"]
[White "Azde"]
[Black "gumimis"]
[Result "1-0"]
[WhiteElo "2440"]
[BlackElo "2301"]
[TimeControl "180+1"]
[EndTime "11:31:42 PST"]
[Termination "Azde won on time"]

1. d4 {[%clk 0:03:00.9]} 1... Nf6 {[%clk 0:02:57]} 2. c4 {[%clk 0:03:01.5]} 2...
g6 {[%clk 0:02:56.4]} 3. Nc3 {[%clk 0:03:02.2]} 3... Bg7 {[%clk 0:02:57.3]} 4.
e4 {[%clk 0:03:02.7]} 4... O-O {[%clk 0:02:58.2]} 5. f3 {[%clk 0:03:03.3]} 5...
d6 {[%clk 0:02:58.8]} 6. Be3 {[%clk 0:03:03.9]} 6... c5 {[%clk 0:02:56.9]} 7.
dxc5 {[%clk 0:03:04.8]} 7... dxc5 {[%clk 0:02:57.1]} 8. Qxd8 {[%clk 0:03:05.7]}
8... Rxd8 {[%clk 0:02:57.2]} 9. Bxc5 {[%clk 0:03:06.6]} 9... Nc6 {[%clk
0:02:56.8]} 10. Nd5 {[%clk 0:03:07.3]} 10... Nd7 {[%clk 0:02:49.7]} 11. Bxe7
{[%clk 0:03:07.3]} 11... Nxe7 {[%clk 0:02:43.5]} 12. Nxe7+ {[%clk 0:03:08.2]}
12... Kf8 {[%clk 0:02:43.1]} 13. Nd5 {[%clk 0:03:09.1]} 13... Bxb2 {[%clk
0:02:40.3]} 14. Rb1 {[%clk 0:03:09.6]} 14... Bg7 {[%clk 0:02:16.5]} 15. Nh3
{[%clk 0:03:09.2]} 15... Ne5 {[%clk 0:02:06.7]} 16. Nf2 {[%clk 0:03:00.9]} 16...
Be6 {[%clk 0:02:00.8]} 17. f4 {[%clk 0:03:00.9]} 17... Nc6 {[%clk 0:01:59.2]}
18. Bd3 {[%clk 0:02:50.1]} 18... b6 {[%clk 0:01:54.1]} 19. O-O {[%clk
0:02:49.7]} 19... Rac8 {[%clk 0:01:53.3]} 20. Rfd1 {[%clk 0:02:40.5]} 20... Na5
{[%clk 0:01:52.5]} 21. Rbc1 {[%clk 0:02:37.8]} 21... Bd4 {[%clk 0:01:46.4]} 22.
Be2 {[%clk 0:02:33.3]} 22... Bc5 {[%clk 0:01:40.3]} 23. g3 {[%clk 0:02:30.9]}
23... f5 {[%clk 0:01:39.1]} 24. Kg2 {[%clk 0:02:28.7]} 24... Bxf2 {[%clk
0:01:37.5]} 25. Kxf2 {[%clk 0:02:29.6]} 25... fxe4 {[%clk 0:01:37.4]} 26. Ke3
{[%clk 0:02:01.9]} 26... Bxd5 {[%clk 0:01:33.4]} 27. cxd5 {[%clk 0:02:01.6]}
27... Rxc1 {[%clk 0:01:33.1]} 28. Rxc1 {[%clk 0:02:02.5]} 28... Rxd5 {[%clk
0:01:32.8]} 29. Rc7 {[%clk 0:02:03]} 29... h5 {[%clk 0:01:16.2]} 30. Kxe4 {[%clk
0:01:58.7]} 30... Rd6 {[%clk 0:01:10.5]} 31. Rxa7 {[%clk 0:01:56.2]} 31... Re6+
{[%clk 0:01:09.2]} 32. Kf3 {[%clk 0:01:55.6]} 32... Nc6 {[%clk 0:01:08.9]} 33.
Ra4 {[%clk 0:01:46.1]} 33... Rd6 {[%clk 0:01:02.3]} 34. Ke3 {[%clk 0:01:42.6]}
34... Ke7 {[%clk 0:00:59.7]} 35. Bd3 {[%clk 0:01:40.2]} 35... Kf6 {[%clk
0:00:58.4]} 36. h3 {[%clk 0:01:37.6]} 36... Ne7 {[%clk 0:00:56.6]} 37. Be4
{[%clk 0:01:33.3]} 37... Re6 {[%clk 0:00:52.5]} 38. Kf3 {[%clk 0:01:32.1]} 38...
Nf5 {[%clk 0:00:46.8]} 39. g4 {[%clk 0:01:29.8]} 39... hxg4+ {[%clk 0:00:45.3]}
40. hxg4 {[%clk 0:01:30.7]} 40... Nd6 {[%clk 0:00:40.3]} 41. g5+ {[%clk
0:01:28]} 41... Kg7 {[%clk 0:00:39.7]} 42. Ra7+ {[%clk 0:01:27.1]} 42... Kf8
{[%clk 0:00:39.5]} 43. Bd5 {[%clk 0:01:26.6]} 43... Re1 {[%clk 0:00:37]} 44. Rd7
{[%clk 0:01:16.4]} 44... Nf5 {[%clk 0:00:34.6]} 45. Rf7+ {[%clk 0:00:54.5]}
45... Ke8 {[%clk 0:00:34.6]} 46. Rb7 {[%clk 0:00:55.4]} 46... b5 {[%clk
0:00:28.6]} 47. Bc6+ {[%clk 0:00:48.1]} 47... Kf8 {[%clk 0:00:28.8]} 48. Bxb5
{[%clk 0:00:48.6]} 48... Rb1 {[%clk 0:00:24.1]} 49. a4 {[%clk 0:00:48.1]} 49...
Rb4 {[%clk 0:00:19.2]} 50. Rb8+ {[%clk 0:00:44.5]} 50... Ke7 {[%clk 0:00:19.2]}
51. Re8+ {[%clk 0:00:44.4]} 51... Kf7 {[%clk 0:00:18.2]} 52. Re5 {[%clk
0:00:30.8]} 52... Rb3+ {[%clk 0:00:14.4]} 53. Kf2 {[%clk 0:00:30.3]} 53... Rb4
{[%clk 0:00:14.1]} 54. Kf3 {[%clk 0:00:27.4]} 54... Rb3+ {[%clk 0:00:14.3]} 55.
Ke4 {[%clk 0:00:27.9]} 55... Nd6+ {[%clk 0:00:11.9]} 56. Kd4 {[%clk 0:00:23.5]}
56... Nf5+ {[%clk 0:00:07.3]} 57. Kc5 {[%clk 0:00:19.3]} 57... Rc3+ {[%clk
0:00:05.8]} 58. Kb4 {[%clk 0:00:18.3]} 58... Rf3 {[%clk 0:00:05.3]} 59. Re4
{[%clk 0:00:15.4]} 59... Nd6 {[%clk 0:00:05.1]} 60. Bc4+ {[%clk 0:00:14]} 60...
Kg7 {[%clk 0:00:03.8]} 61. Rd4 {[%clk 0:00:14.4]} 61... Nf5 {[%clk 0:00:01.4]}
62. Rd7+ {[%clk 0:00:13.8]} 62... Kf8 {[%clk 0:00:02.1]} 63. Rf7+ {[%clk
0:00:13.4]} 63... Ke8 {[%clk 0:00:02.8]} 64. Rxf5 {[%clk 0:00:08.3]} 64... gxf5
{[%clk 0:00:03.1]} 65. g6 {[%clk 0:00:08.9]} 65... Rg3 {[%clk 0:00:02.8]} 66.
Bf7+ {[%clk 0:00:08.9]} 66... Kf8 {[%clk 0:00:03.3]} 67. a5 {[%clk 0:00:09.8]}
67... Rf3 {[%clk 0:00:03.4]} 68. a6 {[%clk 0:00:08.6]} 68... Rxf4+ {[%clk
0:00:03.7]} 69. Kb5 {[%clk 0:00:09]} 69... Rf1 {[%clk 0:00:02.6]} 70. Bb3 {[%clk
0:00:04.2]} 70... Ra1 {[%clk 0:00:02.4]} 71. Ba4 {[%clk 0:00:04]} 1-0

[Event "*** Titled Tuesday Blitz"]
[Site "Chess.com"]
[Date "2021.03.02"]
[Round "8"]
[White "LionTheLeon_06"]
[Black "PrinceMurad09"]
[Result "0-1"]
[WhiteElo "2700"]
[BlackElo "2562"]
[TimeControl "180+1"]
[EndTime "11:32:00 PST"]
[Termination "PrinceMurad09 won on time"]

1. d4 {[%clk 0:03:00.9]} 1... Nf6 {[%clk 0:03:00]} 2. c4 {[%clk 0:03:00]} 2...
c5 {[%clk 0:02:58.5]} 3. d5 {[%clk 0:02:59.1]} 3... b5 {[%clk 0:02:58.9]} 4.
cxb5 {[%clk 0:02:59.2]} 4... a6 {[%clk 0:02:59.5]} 5. bxa6 {[%clk 0:02:59.8]}
5... g6 {[%clk 0:03:00.1]} 6. Nc3 {[%clk 0:03:00.1]} 6... Bg7 {[%clk 0:03:00.7]}
7. e4 {[%clk 0:03:00.3]} 7... Qa5 {[%clk 0:03:00.9]} 8. Bd2 {[%clk 0:02:59.4]}
8... Bxa6 {[%clk 0:03:01.2]} 9. Nf3 {[%clk 0:02:52]} 9... d6 {[%clk 0:03:00.1]}
10. Bxa6 {[%clk 0:02:50.4]} 10... Qxa6 {[%clk 0:03:00.2]} 11. Qe2 {[%clk
0:02:48.1]} 11... O-O {[%clk 0:03:00.4]} 12. Qxa6 {[%clk 0:02:43.1]} 12... Nxa6
{[%clk 0:03:01.3]} 13. Ke2 {[%clk 0:02:39.9]} 13... Rfb8 {[%clk 0:02:59.4]} 14.
Rab1 {[%clk 0:02:31.3]} 14... Nd7 {[%clk 0:02:50.5]} 15. Rhc1 {[%clk 0:02:28.2]}
15... f5 {[%clk 0:02:31.7]} 16. exf5 {[%clk 0:02:26.1]} 16... gxf5 {[%clk
0:02:32.1]} 17. Nh4 {[%clk 0:02:17.7]} 17... Rf8 {[%clk 0:02:29.9]} 18. Rd1
{[%clk 0:01:52.3]} 18... Nb6 {[%clk 0:02:07.9]} 19. b3 {[%clk 0:01:04.3]} 19...
Nb4 {[%clk 0:01:57.1]} 20. a4 {[%clk 0:01:01.6]} 20... N6xd5 {[%clk 0:01:46.5]}
21. Nxd5 {[%clk 0:01:01.4]} 21... Nxd5 {[%clk 0:01:47.4]} 22. Rdc1 {[%clk
0:01:00]} 22... e6 {[%clk 0:01:44.2]} 23. g3 {[%clk 0:00:59.4]} 23... Rfb8
{[%clk 0:01:42.6]} 24. Ng2 {[%clk 0:00:49.3]} 24... Kf7 {[%clk 0:01:42.3]} 25.
Ne3 {[%clk 0:00:39.4]} 25... Nb4 {[%clk 0:01:32.3]} 26. f4 {[%clk 0:00:33.7]}
26... Bd4 {[%clk 0:01:24.8]} 27. Nc4 {[%clk 0:00:33]} 27... Ke7 {[%clk
0:01:17.8]} 28. Na3 {[%clk 0:00:27.9]} 28... Nd5 {[%clk 0:00:51]} 29. Nb5 {[%clk
0:00:25.1]} 29... Bf6 {[%clk 0:00:50.1]} 30. Kd3 {[%clk 0:00:22.8]} 30... h5
{[%clk 0:00:50.1]} 31. Re1 {[%clk 0:00:21.5]} 31... Kd7 {[%clk 0:00:49.2]} 32.
Re2 {[%clk 0:00:20.1]} 32... Re8 {[%clk 0:00:39.1]} 33. Rbe1 {[%clk 0:00:19.9]}
33... Bd8 {[%clk 0:00:37.2]} 34. Kc2 {[%clk 0:00:19.8]} 34... Ba5 {[%clk
0:00:34.9]} 35. Rd1 {[%clk 0:00:18.1]} 35... Bxd2 {[%clk 0:00:33.9]} 36. Rdxd2
{[%clk 0:00:17.3]} 36... Nb4+ {[%clk 0:00:32]} 37. Kb2 {[%clk 0:00:16.9]} 37...
d5 {[%clk 0:00:32.4]} 38. Re3 {[%clk 0:00:13.5]} 38... d4 {[%clk 0:00:29.9]} 39.
Re5 {[%clk 0:00:12.9]} 39... Nd5 {[%clk 0:00:27]} 40. Na3 {[%clk 0:00:10.7]}
40... Reb8 {[%clk 0:00:23.5]} 41. Nb5 {[%clk 0:00:06.7]} 41... Rb6 {[%clk
0:00:16.9]} 42. Kc2 {[%clk 0:00:05.3]} 42... Nb4+ {[%clk 0:00:12.9]} 43. Kb2
{[%clk 0:00:05.4]} 43... Nd5 {[%clk 0:00:13.5]} 44. Kc2 {[%clk 0:00:05.7]} 44...
Rxb5 {[%clk 0:00:13.1]} 45. axb5 {[%clk 0:00:03.7]} 45... Nb4+ {[%clk
0:00:11.5]} 46. Kb1 {[%clk 0:00:01.5]} 46... Ra3 {[%clk 0:00:10.8]} 47. Rde2
{[%clk 0:00:01.6]} 47... Rxb3+ {[%clk 0:00:10.9]} 48. Kc1 {[%clk 0:00:01.6]}
48... d3 {[%clk 0:00:11.2]} 49. Rd2 {[%clk 0:00:01.7]} 49... c4 {[%clk
0:00:11.4]} 50. Rc5 {[%clk 0:00:01.4]} 50... c3 {[%clk 0:00:10.5]} 51. Rf2
{[%clk 0:00:01]} 51... d2+ {[%clk 0:00:06.7]} 52. Rxd2+ {[%clk 0:00:01.3]} 52...
cxd2+ {[%clk 0:00:07.3]} 53. Kxd2 {[%clk 0:00:02.2]} 53... Nd5 {[%clk
0:00:07.3]} 54. Rc6 {[%clk 0:00:01.4]} 54... Rxb5 {[%clk 0:00:07.1]} 55. Ra6
{[%clk 0:00:02]} 55... Rb2+ {[%clk 0:00:07.2]} 56. Kd3 {[%clk 0:00:02.5]} 56...
Rxh2 {[%clk 0:00:08.1]} 57. Kd4 {[%clk 0:00:02.8]} 57... Rd2+ {[%clk 0:00:07.8]}
58. Ke5 {[%clk 0:00:03.3]} 58... Re2+ {[%clk 0:00:08.4]} 59. Kd4 {[%clk
0:00:03.9]} 59... Ke7 {[%clk 0:00:06.7]} 60. Ra8 {[%clk 0:00:03.7]} 60... Rg2
{[%clk 0:00:06.2]} 61. Ke5 {[%clk 0:00:03.6]} 61... Re2+ {[%clk 0:00:06.3]} 62.
Kd4 {[%clk 0:00:04.2]} 62... Rg2 {[%clk 0:00:05]} 63. Ke5 {[%clk 0:00:04.1]}
63... Rxg3 {[%clk 0:00:04.8]} 64. Ra7+ {[%clk 0:00:04.1]} 64... Kd8 {[%clk
0:00:05.1]} 65. Kxe6 {[%clk 0:00:04.6]} 65... Nc7+ {[%clk 0:00:05.5]} 66. Kxf5
{[%clk 0:00:04.7]} 66... h4 {[%clk 0:00:05.9]} 67. Ra1 {[%clk 0:00:03.1]} 67...
h3 {[%clk 0:00:06.1]} 68. Rh1 {[%clk 0:00:01.8]} 68... Ke7 {[%clk 0:00:06.5]}
69. Ke5 {[%clk 0:00:02.3]} 69... Ne8 {[%clk 0:00:06]} 70. f5 {[%clk 0:00:02.7]}
70... Nf6 {[%clk 0:00:03.8]} 71. Kf4 {[%clk 0:00:03.1]} 71... Nh5+ {[%clk
0:00:04.3]} 72. Ke5 {[%clk 0:00:03.1]} 72... Rf3 {[%clk 0:00:03.5]} 73. Rh2
{[%clk 0:00:02.8]} 73... Re3+ {[%clk 0:00:03.3]} 74. Kd4 {[%clk 0:00:02.4]}
74... Rf3 {[%clk 0:00:03.8]} 75. Ke5 {[%clk 0:00:02.7]} 75... Re3+ {[%clk
0:00:04.2]} 76. Kd4 {[%clk 0:00:03]} 76... Rg3 {[%clk 0:00:04.9]} 77. Ke5 {[%clk
0:00:03.3]} 77... Kf7 {[%clk 0:00:05.4]} 78. Rb2 {[%clk 0:00:02.6]} 78... Rg2
{[%clk 0:00:05.4]} 79. Rb7+ {[%clk 0:00:02.4]} 79... Kg8 {[%clk 0:00:05.8]} 80.
Rb8+ {[%clk 0:00:02.9]} 80... Kh7 {[%clk 0:00:05.9]} 81. Rb3 {[%clk 0:00:03.2]}
81... Ng3 {[%clk 0:00:05]} 82. Rb4 {[%clk 0:00:02.8]} 82... Re2+ {[%clk
0:00:02.4]} 83. Kf6 {[%clk 0:00:02.8]} 83... Nxf5 {[%clk 0:00:02.2]} 84. Kxf5
{[%clk 0:00:02.3]} 84... Rf2+ {[%clk 0:00:02.5]} 85. Kg4 {[%clk 0:00:02.2]}
85... h2 {[%clk 0:00:03.4]} 0-1

[Event "*** Titled Tuesday Blitz"]
[Site "Chess.com"]
[Date "2021.03.02"]
[Round "8"]
[White "KonstantinB_1983"]
[Black "Misticpikachu"]
[Result "0-1"]
[WhiteElo "2531"]
[BlackElo "2435"]
[TimeControl "180+1"]
[EndTime "11:32:15 PST"]
[Termination "Misticpikachu won by checkmate"]

1. d4 {[%clk 0:03:00.9]} 1... e6 {[%clk 0:02:59.8]} 2. c4 {[%clk 0:03:01.2]}
2... d5 {[%clk 0:02:59.8]} 3. Nf3 {[%clk 0:03:00.7]} 3... Nf6 {[%clk 0:03:00.2]}
4. Nc3 {[%clk 0:03:00.9]} 4... Be7 {[%clk 0:03:00.7]} 5. Bg5 {[%clk 0:03:01.1]}
5... O-O {[%clk 0:03:00.9]} 6. e3 {[%clk 0:03:01.5]} 6... b6 {[%clk 0:03:00.8]}
7. Qc2 {[%clk 0:03:00.6]} 7... Bb7 {[%clk 0:03:00.4]} 8. Bxf6 {[%clk 0:02:59.1]}
8... Bxf6 {[%clk 0:03:00.2]} 9. cxd5 {[%clk 0:02:59.3]} 9... exd5 {[%clk
0:02:58]} 10. Be2 {[%clk 0:02:57.1]} 10... c5 {[%clk 0:02:58.3]} 11. Rd1 {[%clk
0:02:54.8]} 11... cxd4 {[%clk 0:02:48]} 12. Nxd4 {[%clk 0:02:53.7]} 12... Nc6
{[%clk 0:02:45.4]} 13. Nxc6 {[%clk 0:02:50.8]} 13... Bxc6 {[%clk 0:02:46.3]} 14.
O-O {[%clk 0:02:45.6]} 14... Re8 {[%clk 0:02:43.9]} 15. Bf3 {[%clk 0:02:44.9]}
15... Rc8 {[%clk 0:02:43.2]} 16. Qb3 {[%clk 0:02:38.6]} 16... Qc7 {[%clk
0:02:13.6]} 17. Bxd5 {[%clk 0:02:32.1]} 17... Bxc3 {[%clk 0:02:07.8]} 18. Qxc3
{[%clk 0:02:21.9]} 18... Bxd5 {[%clk 0:02:06.5]} 19. Qxc7 {[%clk 0:02:21.5]}
19... Rxc7 {[%clk 0:02:07]} 20. Rxd5 {[%clk 0:02:21.2]} 20... Rc2 {[%clk
0:02:07.9]} 21. Rb5 {[%clk 0:02:18.7]} 21... Rd8 {[%clk 0:02:04.6]} 22. a4
{[%clk 0:02:16.1]} 22... Rdd2 {[%clk 0:01:57.6]} 23. b3 {[%clk 0:02:15.1]} 23...
Ra2 {[%clk 0:01:37.3]} 24. g3 {[%clk 0:02:07.9]} 24... g6 {[%clk 0:01:34.2]} 25.
h4 {[%clk 0:02:05]} 25... h5 {[%clk 0:01:27.8]} 26. Kg2 {[%clk 0:02:04.4]} 26...
Kg7 {[%clk 0:01:25.9]} 27. Kf3 {[%clk 0:02:01.2]} 27... Rab2 {[%clk 0:01:25.2]}
28. a5 {[%clk 0:01:57.9]} 28... bxa5 {[%clk 0:01:06.6]} 29. Rxa5 {[%clk
0:01:57]} 29... Rd7 {[%clk 0:01:07.1]} 30. Ra3 {[%clk 0:01:47.6]} 30... Rb7
{[%clk 0:01:05.6]} 31. Rfa1 {[%clk 0:01:45.5]} 31... Rb5 {[%clk 0:00:40.2]} 32.
R1a2 {[%clk 0:01:39.4]} 32... Rf5+ {[%clk 0:00:37]} 33. Ke4 {[%clk 0:01:36]}
33... Rfxf2 {[%clk 0:00:37.2]} 34. Rxb2 {[%clk 0:01:32.5]} 34... Rxb2 {[%clk
0:00:38.1]} 35. Kf4 {[%clk 0:01:27.3]} 35... Rf2+ {[%clk 0:00:34.5]} 36. Ke4
{[%clk 0:01:26.4]} 36... Rg2 {[%clk 0:00:30.4]} 37. Kf3 {[%clk 0:01:21.3]} 37...
Rb2 {[%clk 0:00:30]} 38. e4 {[%clk 0:01:21.2]} 38... Kf6 {[%clk 0:00:27.6]} 39.
Kf4 {[%clk 0:01:19.2]} 39... Rf2+ {[%clk 0:00:27]} 40. Ke3 {[%clk 0:01:19.1]}
40... Rg2 {[%clk 0:00:26.2]} 41. Ra6+ {[%clk 0:01:14.9]} 41... Ke5 {[%clk
0:00:19.5]} 42. Ra5+ {[%clk 0:01:13.1]} 42... Kf6 {[%clk 0:00:19.8]} 43. Kf4
{[%clk 0:01:07.7]} 43... Rf2+ {[%clk 0:00:19.8]} 44. Ke3 {[%clk 0:01:06.9]}
44... Rb2 {[%clk 0:00:20.4]} 45. Rb5 {[%clk 0:01:05.8]} 45... Rg2 {[%clk
0:00:18]} 46. Kf3 {[%clk 0:01:04.6]} 46... Rb2 {[%clk 0:00:18.2]} 47. b4 {[%clk
0:01:03.4]} 47... Ke6 {[%clk 0:00:17.6]} 48. Rb7 {[%clk 0:01:00.1]} 48... Rb3+
{[%clk 0:00:15]} 49. Kf4 {[%clk 0:00:59.1]} 49... Kf6 {[%clk 0:00:13.2]} 50. Rb5
{[%clk 0:00:54.4]} 50... Kg7 {[%clk 0:00:09.9]} 51. Rb7 {[%clk 0:00:52]} 51...
a5 {[%clk 0:00:09.3]} 52. b5 {[%clk 0:00:51.3]} 52... a4 {[%clk 0:00:09.9]} 53.
e5 {[%clk 0:00:46.6]} 53... Rb4+ {[%clk 0:00:09.2]} 54. Kf3 {[%clk 0:00:45.5]}
54... Rb3+ {[%clk 0:00:09.6]} 55. Kg2 {[%clk 0:00:44.8]} 55... Re3 {[%clk
0:00:09.5]} 56. Re7 {[%clk 0:00:37]} 56... a3 {[%clk 0:00:08.1]} 57. b6 {[%clk
0:00:33.9]} 57... a2 {[%clk 0:00:06.6]} 58. Ra7 {[%clk 0:00:30.2]} 58... Rxe5
{[%clk 0:00:05.4]} 59. Rxa2 {[%clk 0:00:29.7]} 59... Rb5 {[%clk 0:00:05.8]} 60.
Ra6 {[%clk 0:00:29.5]} 60... Kh6 {[%clk 0:00:03.9]} 61. Kf3 {[%clk 0:00:29.5]}
61... f6 {[%clk 0:00:03.3]} 62. Kf4 {[%clk 0:00:29.1]} 62... g5+ {[%clk
0:00:03.4]} 63. Kf3 {[%clk 0:00:27.1]} 63... g4+ {[%clk 0:00:03]} 64. Ke3 {[%clk
0:00:26.5]} 64... Kg6 {[%clk 0:00:03.6]} 65. Kf4 {[%clk 0:00:26.1]} 65... Rb4+
{[%clk 0:00:03.7]} 66. Ke3 {[%clk 0:00:25.9]} 66... Kf5 {[%clk 0:00:04.1]} 67.
Ra5+ {[%clk 0:00:25.3]} 67... Kg6 {[%clk 0:00:04.6]} 68. Ra6 {[%clk 0:00:24.7]}
68... Rb3+ {[%clk 0:00:04.9]} 69. Kf2 {[%clk 0:00:23]} 69... Kf5 {[%clk
0:00:02.6]} 70. Ra5+ {[%clk 0:00:21.8]} 70... Kg6 {[%clk 0:00:02.9]} 71. Ra6
{[%clk 0:00:21.3]} 71... f5 {[%clk 0:00:02.2]} 72. b7+ {[%clk 0:00:20.4]} 72...
Kf7 {[%clk 0:00:02.7]} 73. Ra7 {[%clk 0:00:20.1]} 73... Kf6 {[%clk 0:00:02.6]}
74. Ke2 {[%clk 0:00:19]} 74... Ke5 {[%clk 0:00:02.8]} 75. Kd2 {[%clk 0:00:18.5]}
75... Rb2+ {[%clk 0:00:03.2]} 76. Kc3 {[%clk 0:00:17.6]} 76... Rb6 {[%clk
0:00:04.1]} 77. Kc4 {[%clk 0:00:14.6]} 77... f4 {[%clk 0:00:04]} 78. Ra5+ {[%clk
0:00:13.5]} 78... Ke4 {[%clk 0:00:03.8]} 79. Rb5 {[%clk 0:00:11.1]} 79... Rxb7
{[%clk 0:00:03.9]} 80. Rxb7 {[%clk 0:00:10.4]} 80... fxg3 {[%clk 0:00:04.1]} 81.
Kc3 {[%clk 0:00:09.3]} 81... g2 {[%clk 0:00:03.7]} 82. Rb1 {[%clk 0:00:08.8]}
82... Kf3 {[%clk 0:00:03.6]} 83. Kd2 {[%clk 0:00:08.6]} 83... Kf2 {[%clk
0:00:03.5]} 84. Kd3 {[%clk 0:00:08.3]} 84... g1=Q {[%clk 0:00:03.8]} 85. Rxg1
{[%clk 0:00:08.4]} 85... Kxg1 {[%clk 0:00:04.7]} 86. Ke3 {[%clk 0:00:09.1]}
86... Kh2 {[%clk 0:00:05.2]} 87. Kf4 {[%clk 0:00:09.4]} 87... g3 {[%clk
0:00:05.7]} 88. Kg5 {[%clk 0:00:10.3]} 88... g2 {[%clk 0:00:06.6]} 89. Kh6
{[%clk 0:00:10.6]} 89... g1=Q {[%clk 0:00:06.7]} 90. Kh7 {[%clk 0:00:11.5]}
90... Kg3 {[%clk 0:00:07]} 91. Kh6 {[%clk 0:00:12]} 91... Kxh4 {[%clk
0:00:07.1]} 92. Kh7 {[%clk 0:00:12.9]} 92... Kg4 {[%clk 0:00:08]} 93. Kh6 {[%clk
0:00:13.8]} 93... Kf5 {[%clk 0:00:07.5]} 94. Kh7 {[%clk 0:00:14.7]} 94... h4
{[%clk 0:00:08]} 95. Kh6 {[%clk 0:00:14.2]} 95... h3 {[%clk 0:00:08.9]} 96. Kh7
{[%clk 0:00:14.1]} 96... h2 {[%clk 0:00:09.8]} 97. Kh6 {[%clk 0:00:14.2]} 97...
h1=Q# {[%clk 0:00:10.7]} 0-1